[Event "Prague Open 2025"]
[Site "Prague"]
[Date "2025.01.15"]
[Round "7.7"]
[White "Felix, Raphael"]
[Black "Marek, Matyas"]
[Result "0-1"]
[Annotator "TA"]
[ECO "B36"]
[WhiteElo "2127"]
[BlackElo "2314"]
[PlyCount "152"]
[EventDate "2025.01.07"]
[EventType "swiss"]
[EventCountry "CZE"]
[SourceTitle "playchess.com"]
[Source "ChessBase"]
[SourceQuality "1"]
[TimeControl "40/5400+30:1800+30"]

{[%evp 18,152,42,29,33,35,42,35,44,4,14,2,15,5,-7,-18,-16,-27,7,-11,0,-5,-4,-3,-8,-4,-6,-12,0,-9,0,-8,0,-36,-29,-23,-8,-10,-11,-55,-6,-68,-27,-44,-43,-37,-19,-64,-44,-55,-65,-428,-73,-74,-69,-67,-50,-83,-39,-166,-148,-485,-226,-240,-241,-251,-172,-404,-392,-330,-316,-493,-225,-347,-350,-322,-301,-298,-342,-304,-300,-306,-266,-367,-294,-308,-321,-335,-326,-326,-310,-481,-458,-470,-475,-499,-496,-485,-485,-466,-431,-493,-478,-1166,-892,-1140,-1155,-1248,-997,-785,-710,-725,-700,-1350,-1015,-1793,-1444,-2051,-2541,-2464,-2416,-29975,-29980,-29980,-29981,-29984,-29985,-29985,-29986,-29986,-29987,-29987,-29988,-29991,-29992,-29992,-29993]} 1. e4 {[%emt 0:00:24]} c5 {[%emt 0:00:03]} 2. Nf3 {[%emt 0:00:23]} Nc6 {[%emt 0:00:08]} 3. d4 {[%emt 0:00:51]} cxd4 {[%emt 0:00:05]} 4. Nxd4 {[%emt 0:00:14]} g6 {[%emt 0:00:04]} 5. c4 {[%emt 0:00:25]} Nf6 {[%emt 0:00:06]} 6. Nc3 {[%emt 0:00:37]} d6 {[%emt 0:00:06]} 7. Be2 {[%emt 0:01:50]} Nxd4 {[%emt 0:00:31]} 8. Qxd4 {[%emt 0:00:37]} Bg7 {[%emt 0:00:03]} 9. O-O {[%emt 0:02:04]} O-O {[%emt 0:00:04]} 10. Qd1 {[%emt 0:21:04]} Bd7 {[%emt 0:00:11]} 11. Be3 {[%emt 0:01:10]} Bc6 {[%emt 0:00:14]} 12. Qc2 {[%emt 0:00:55]} a6 {[%emt 0:07:26][%cal Ob7b5]} 13. Rad1 {[%emt 0:05:23]} Qa5 {[%emt 0:02:16]} 14. a3 {[%emt 0:10:41]} b5 {[%emt 0:03:33]} 15. b4 {[%emt 0:14:02]} Qc7 $1 {[%emt 0:01:43]} (15... Qxa3 $2 16. Ra1 Qxb4 17. Rfb1 $18) 16. c5 {[%emt 0:01:11]} dxc5 {[%emt 0:04:33]} 17. Bxc5 {[%emt 0:00:11]} Qb7 {[%emt 0:01:13][%cal Rf6e4]} 18. Bf3 {[%emt 0:04:10]} Rfd8 {[%emt 0:03:08] Dodges Nd5} 19. Nd5 {[%emt 0:06:11]} Nxd5 {[%emt 0:03:45]} (19... Bxd5 20. exd5 Nxd5 21. Bxe7 Qxe7 22. Bxd5 Rac8) 20. exd5 {[%emt 0:00:08]} Bxd5 {[%emt 0:00:10]} 21. Rxd5 {[%emt 0:00:15]} (21. Bxe7 {keeps more tension.} Rac8 22. Bxd5 Qxe7 23. Qb3) 21... Rxd5 {[%emt 0:00:08]} 22. Bxe7 {[%emt 0:01:02]} Qxe7 {[%emt 0:00:23]} 23. Bxd5 {[%emt 0:00:08]} Rd8 {[%emt 0:00:14]} 24. Bf3 {[%emt 0:01:05]} Bd4 {[%emt 0:02:35]} 25. Qc6 {[%emt 0:03:45] White is weak on the dark squares} Rd6 {[%emt 0:00:41]} 26. Qc2 {[%emt 0:01:52]} Qf6 {[%emt 0:00:23]} 27. Rd1 {[%emt 0:01:44]} h5 {[%emt 0:01:42]} 28. Qe2 {[%emt 0:03:11]} Kg7 {[%emt 0:00:32]} (28... Re6 $15 29. Qd2 h4) 29. h3 {[%emt 0:00:39]} (29. g3 $11) 29... Qf4 {[%emt 0:01:26]} 30. Qd2 {[%emt 0:01:15]} Qh4 {[%emt 0:02:09]} 31. Qe2 {[%emt 0:04:14]} Rf6 {[%emt 0:04:25]} 32. Rf1 {[%emt 0:00:32]} Qf4 {[%emt 0:02:57] Black is more active.} 33. Qe4 {[%emt 0:03:21]} Qd2 {[%emt 0:04:11]} (33... Qxe4 34. Bxe4 h4 35. Bf3 Bb2) 34. Qd5 $2 {[%emt 0:01:49][%mdl 8192] [#]} (34. Qe2 $15 Qxe2 35. Bxe2) 34... Qc3 $2 {[%emt 0:03:53]} (34... Re6 $1 $19 {[%cal Re6e5] and Black stays clearly on top. Threatens to win with ...Re5.} 35. Kh2 Qb2) 35. Rd1 $17 {[%emt 0:00:36]} Bb6 {[%emt 0:01:00]} 36. Qd3 {[%emt 0:01:27]} Qe5 {[%emt 0:01:22]} 37. Rc1 {[%emt 0:07:37]} g5 {[%emt 0:35:50][%cal Og5g4]} (37... Qb2 {simplifies} 38. Qc2 Qxa3 39. Qc3 Qxc3 40. Rxc3 Rf4) 38. Qc3 {[%emt 0:01:44] [#]} (38. Rc2 $15) 38... Qf4 $1 $19 {[%emt 0:11:30]} 39. Bxh5 $2 {[%emt 0:00:23][%mdl 8192]} (39. Rd1 $17) 39... Bd4 {[%emt 0:01:26]} (39... Qxf2+ 40. Kh1 $17) (39... Bxf2+ $142 40. Kh1 Bd4) 40. Qc2 {[%emt 0:00:42]} Bxf2+ {[%emt 0:02:10]} (40... Qxf2+ 41. Qxf2 Rxf2 42. Rd1 Rd2+ 43. Kf1 Rxd1+ (43... Rf2+ 44. Ke1 $11) 44. Bxd1 $11) 41. Kh1 {[%emt 0:30:11]} Bd4 {[%emt 0:30:21]} 42. Qd1 $2 {[%emt 0:00:00]} (42. Rd1) 42... Be5 {[%emt 0:00:00]} 43. Qg1 {[%emt 0:00:00] Inhibits Qh2+.} Qg3 {[%emt 0:00:00][%cal Of6h6]} 44. Be2 {[%emt 0:00:00]} (44. Re1 $142 Bd4 45. Qxd4 Qxe1+ 46. Kh2) 44... Qxa3 {[%emt 0:00:00]} (44... Rf2 $142 45. Bd3 Bd4) 45. Bf3 {[%emt 0:00:00]} (45. Qe1 $142) 45... Qxb4 {[%emt 0:00:00]} 46. Re1 {[%emt 0:00:00]} Bd4 {[%emt 0:00:00]} 47. Re4 {[%emt 0:00:00]} Bxg1 {[%emt 0:00:00]} 48. Rxb4 {[%emt 0:00:00][%mdl 4096] Endgame KRB-KRB. Black is two pawns up.} Bc5 {[%emt 0:00:00]} 49. Rb1 {[%emt 0:00:00]} Rb6 {[%emt 0:00:42]} 50. Bd1 {[%emt 0:00:00]} f5 {[%emt 0:01:47]} 51. Rc1 {[%emt 0:00:00]} Bd6 {[%emt 0:00:35]} 52. g4 {[%emt 0:00:00]} fxg4 {[%emt 0:00:38]} 53. hxg4 {[%emt 0:00:00]} Kf6 {[%emt 0:00:36]} 54. Bb3 {[%emt 0:00:00]} (54. Ra1 $142) 54... Ke5 {[%emt 0:00:21]} 55. Kg2 {[%emt 0:00:00]} Kd4 {[%emt 0:00:33]} 56. Kf3 {[%emt 0:00:00]} a5 {[%emt 0:00:12]} 57. Rb1 {[%emt 0:00:00]} Kc3 {[%emt 0:01:01]} ({Less strong is} 57... a4 58. Bxa4 b4 59. Rd1+ Kc3 60. Ke4 $15) 58. Ke4 {[%emt 0:02:28]} Bb4 {[%emt 0:01:14]} (58... a4 59. Bxa4 bxa4 60. Rxb6 $11) 59. Kf5 {[%emt 0:00:28]} a4 {[%emt 0:00:11]} 60. Bd1 {[%emt 0:00:08]} (60. Bg8 $142 Bf8 61. Re1) 60... a3 {[%emt 0:00:33]} 61. Bb3 {[%emt 0:00:03]} Be7 {[%emt 0:00:15]} 62. Ba2 {[%emt 0:01:38]} Rf6+ {[%emt 0:01:58]} 63. Ke5 {[%emt 0:00:21]} b4 {[%emt 0:02:00]} 64. Rb3+ {[%emt 0:00:21]} Kc2 {[%emt 0:00:06]} 65. Re3 {[%emt 0:04:10]} Rf2 {[%emt 0:00:39]} 66. Kd4 {[%emt 0:00:34]} Kb2 {[%emt 0:00:33]} 67. Bc4 {[%emt 0:00:26]} Bf6+ {[%emt 0:00:24]} 68. Kc5 {[%emt 0:00:34]} Bc3 {[%emt 0:00:08]} 69. Kb5 {[%emt 0:01:08]} a2 {[%emt 0:00:12]} 70. Bxa2 {[%emt 0:00:02]} Kxa2 {[%emt 0:00:05] KRB-KR} 71. Ka4 {[%emt 0:00:05] [#]} b3 $1 {[%emt 0:00:35]} 72. Rxc3 {[%emt 0:00:23]} Rf4+ {[%emt 0:00:03]} 73. Ka5 {[%emt 0:00:24]} b2 {[%emt 0:00:04]} 74. Rc2 {[%emt 0:00:05]} Ka1 {[%emt 0:00:07]} 75. Rc3 {[%emt 0:00:15]} b1=Q {[%emt 0:00:35]} 76. Ra3+ {[%emt 0:00:04]} Kb2 {[%emt 0:00:09]} 0-1

[Event "Prague Open 2025"]
[Site "Prague"]
[Date "2025.01.15"]
[Round "7.8"]
[White "Radzimski, Antoni"]
[Black "Shapovalovi, Vasiko"]
[Result "1/2-1/2"]
[Annotator "TA"]
[ECO "A41"]
[WhiteElo "2289"]
[BlackElo "2078"]
[PlyCount "139"]
[EventDate "2025.01.07"]
[EventType "swiss"]
[EventCountry "CZE"]
[SourceTitle "playchess.com"]
[Source "ChessBase"]
[SourceQuality "1"]
[TimeControl "40/5400+30:1800+30"]

{[%evp 10,139,70,63,79,74,82,56,65,56,57,57,62,66,101,64,65,29,25,38,72,68,61,51,70,72,79,77,70,47,72,58,192,195,198,212,198,212,194,202,202,203,216,204,226,216,225,212,226,220,260,256,268,260,260,265,263,224,218,193,189,191,204,53,163,0,216,204,215,206,202,65,61,51,125,155,104,110,209,204,393,392,388,373,360,216,216,224,216,216,216,70,70,70,123,70,70,70,70,70,244,244,293,70,68,0,0,0,0,0,0,0,0,0,0,0,0,0,0,0,0,0,0,0,0,0,0,0,0,0,0,0]} 1. d4 {[%emt 0:00:03]} d6 {[%emt 0:00:08]} 2. e4 {[%emt 0:00:29]} g6 {[%emt 0:00:13]} 3. c4 {[%emt 0:00:22]} Bg7 {[%emt 0:00:29]} 4. Nc3 {[%emt 0:00:06]} c6 {[%emt 0:01:29]} 5. Be2 {[%emt 0:01:55]} a6 {[%emt 0:01:15]} 6. Nf3 {[%emt 0:03:38]} Bg4 {[%emt 0:03:22]} 7. O-O {[%emt 0:04:42]} Qc7 {[%emt 0:03:05]} 8. a4 {[%emt 0:03:21]} a5 {[%emt 0:01:13]} 9. Be3 {[%emt 0:01:52]} Na6 {[%emt 0:01:07]} 10. Qd2 {[%emt 0:02:41]} e5 {[%emt 0:10:13]} 11. Rad1 {[%emt 0:05:35]} Ne7 {[%emt 0:03:33]} 12. dxe5 {[%emt 0:08:40]} dxe5 {[%emt 0:00:11]} 13. h3 {[%emt 0:01:08]} Bxf3 {[%emt 0:00:17]} 14. Bxf3 {[%emt 0:00:02]} b6 {[%emt 0:22:21]} 15. Qd6 {[%emt 0:03:17]} Qxd6 {[%emt 0:12:40]} 16. Rxd6 {[%emt 0:00:10]} Nc5 {[%emt 0:00:02]} 17. Bg4 {[%emt 0:09:03][%cal Bf3g4,Bg4d7,Bd7c6][%mdl 32]} O-O {[%emt 0:02:27]} 18. Bd7 {[%emt 0:04:57]} Nb7 {[%emt 0:11:23]} 19. Rd2 {[%emt 0:03:35] White has more active pieces.} (19. Bxc6 Nxd6 20. Bxa8 Rxa8 $19) 19... Nc5 {[%emt 0:02:55]} 20. Rfd1 $36 {[%emt 0:00:46][%mdl 2048] White has some pressure.} Rfb8 {[%emt 0:01:15]} (20... Rfd8 $14) 21. Rd6 $1 $18 {[%emt 0:01:48]} Nb7 {[%emt 0:01:25]} 22. Rxc6 $1 {[%emt 0:01:19] Black is weak on the light squares} Nxc6 {[%emt 0:00:41]} 23. Bxc6 {[%emt 0:00:04][%cal Oc3d5]} Bf8 {[%emt 0:04:54]} 24. Rd7 {[%emt 0:03:12]} Nc5 {[%emt 0:02:10]} 25. Bxc5 {[%emt 0:00:18]} Bxc5 {[%emt 0:00:11]} 26. Bxa8 {[%emt 0:01:40]} Rxa8 {[%emt 0:00:02][%mdl 4096] Endgame KRB-KRN. White is a pawn up.} 27. Nd5 {[%emt 0:00:10]} Rb8 {[%emt 0:00:11]} 28. g3 {[%emt 0:00:53]} h5 {[%emt 0:00:07]} 29. Kg2 {[%emt 0:00:10]} Kf8 {[%emt 0:00:40]} 30. f4 {[%emt 0:01:13]} h4 {[%emt 0:00:39]} 31. gxh4 {[%emt 0:01:18]} (31. fxe5 $6 Re8 32. g4 (32. gxh4 Rxe5 33. Kf3 Rh5 $16) 32... Rxe5 $18) 31... exf4 {[%emt 0:00:08]} 32. Kf3 {[%emt 0:00:54]} Kg7 {[%emt 0:00:42]} 33. Kxf4 {[%emt 0:01:37]} Rh8 {[%emt 0:00:10]} 34. Kg4 {[%emt 0:01:21]} Bf2 {[%emt 0:00:36]} 35. Kf3 {[%emt 0:08:02]} Bd4 {[%emt 0:00:38]} 36. Kg3 $2 {[%emt 0:01:00]} (36. h5 $1 $18 {[%cal Rh5g6]} Bxb2 37. hxg6 (37. Nxb6 Rxh5 38. Kg4 Bf6 $11) 37... Kxg6 38. Kg4 (38. Nxb6 Rxh3+ 39. Kg4 Rb3 $16)) 36... Re8 {[%emt 0:01:32]} (36... Be5+ $14 37. Kg4 Bxb2) 37. Kf3 {[%emt 0:01:44]} (37. h5 $142 {Black must now prevent hxg6.} gxh5 38. Kf3 Bxb2 39. Rd6 (39. Nxb6 Re6 $16)) 37... Rh8 $1 {[%emt 0:00:24] [#]} 38. h5 $1 {[%emt 0:00:29]} Bxb2 {[%emt 0:06:29]} (38... gxh5 39. Ne3) 39. hxg6 {[%emt 0:01:08]} (39. Nxb6 Rxh5 40. Kg4 Bf6 $11) 39... Kxg6 {[%emt 0:00:07]} 40. Rd6+ {[%emt 0:09:15]} (40. Nxb6 f5 $11) (40. Kg4 $18) 40... Kg5 $14 {[%emt 0:06:13]} 41. Rxb6 {[%emt 0:30:30]} (41. Nxb6 Rxh3+ 42. Kg2 Re3 $11) 41... Bd4 {[%emt 0:30:17]} (41... Be5 $1 $14) 42. Rb5 $16 {[%emt 0:00:26]} Rxh3+ {[%emt 0:00:25]} 43. Ke2 {[%emt 0:00:23][%cal Oc4c5]} f5 {[%emt 0:00:00]} (43... Be5 $16) 44. c5 $1 $18 {[%emt 0:00:00][%cal Bc4c5,Bc5c6][%mdl 32]} (44. Rxa5 fxe4 45. Ne3+ Kg6 $11) 44... fxe4 $2 {[%emt 0:00:00]} (44... Rh4 {was called for.} 45. exf5 (45. Rxa5 Rxe4+ 46. Kf3 Bxc5 $16) 45... Kxf5) 45. c6 $1 {[%emt 0:00:00][%cal Oc6c7]} (45. Rxa5 Rh6 $14) 45... Rh2+ {[%emt 0:00:00]} 46. Kd1 {[%emt 0:00:00]} Be5 {[%emt 0:00:00] Prevents c7} 47. c7 {[%emt 0:00:00]} Bxc7 {[%emt 0:00:00]} 48. Nxc7+ {[%emt 0:00:00] KRN-KR} Kf4 {[%emt 0:00:00]} 49. Ne6+ {[%emt 0:00:00]} (49. Rxa5 Ke3 50. Ra6 Rh5 $18) 49... Kf3 {[%emt 0:00:00]} 50. Ng5+ {[%emt 0:00:00]} (50. Rxa5 e3 51. Nd4+ Ke4 $18) (50. Rf5+ $18 Ke3 51. Rxa5) 50... Ke3 $14 {[%emt 0:00:01]} 51. Rxa5 {[%emt 0:01:49]} Ra2 {[%emt 0:02:23] [#]} ({Black should try} 51... Kd3 $14 52. Rd5+ Kc4) 52. Kc1 {[%emt 0:01:03]} (52. Ne6 $1 $16) 52... Kd3 {[%emt 0:00:17]} 53. Kb1 {[%emt 0:00:49]} Rg2 {[%emt 0:00:06]} 54. Ne6 {[%emt 0:00:42] Intending Nf4+ and mate.} Rg1+ $2 {[%emt 0:00:45]} (54... Kc3 $14) 55. Kb2 $18 {[%emt 0:00:11]} e3 {[%emt 0:00:07] [#]} 56. Re5 $2 {[%emt 0:00:57]} ({White has to play} 56. Nf4+ $1 $18 Ke4 57. Nd5 (57. Ne2 Rg2 $11)) 56... Rf1 $14 {[%emt 0:02:03]} 57. Rd5+ {[%emt 0:06:05]} ({Better is} 57. a5 $1 $14) 57... Ke4 $11 {[%emt 0:00:20]} 58. Rd8 {[%emt 0:00:11]} e2 {[%emt 0:01:43]} 59. Nc5+ {[%emt 0:00:02]} Kf5 $1 {[%emt 0:00:26]} 60. Nd3 {[%emt 0:00:34]} Rd1 $1 {[%emt 0:00:56] aiming for ...Rd2+.} 61. Re8 {[%emt 0:00:23]} Rxd3 {[%emt 0:00:07]} 62. Rxe2 {[%emt 0:00:04] KR-KR. White is a pawn up.} Kf6 $1 {[%emt 0:00:10]} 63. Re8 {[%emt 0:01:12]} Rd6 {[%emt 0:00:47]} 64. Kb3 {[%emt 0:00:54]} Re6 {[%emt 0:00:01]} 65. Rh8 {[%emt 0:00:31]} Ke7 {[%emt 0:00:15]} 66. a5 {[%emt 0:00:44]} Kd7 {[%emt 0:00:05]} 67. Kb4 {[%emt 0:00:07]} Kc7 {[%emt 0:00:10]} 68. Kb5 {[%emt 0:00:06]} Kb7 {[%emt 0:00:11]} 69. Rh7+ {[%emt 0:00:01]} Ka8 {[%emt 0:00:16]} 70. Rh5 {[%emt 0:00:07]} 1/2-1/2

[Event "Prague Open 2025"]
[Site "Prague"]
[Date "2025.01.15"]
[Round "7.9"]
[White "Topencik, Bruno"]
[Black "Sokhor, Nazar"]
[Result "1/2-1/2"]
[Annotator "TA"]
[ECO "D10"]
[WhiteElo "1985"]
[BlackElo "2265"]
[PlyCount "92"]
[EventDate "2025.01.07"]
[EventType "swiss"]
[EventCountry "CZE"]
[SourceTitle "playchess.com"]
[Source "ChessBase"]
[SourceQuality "1"]
[TimeControl "40/5400+30:1800+30"]

{[%evp 10,92,36,36,83,88,99,97,99,89,92,85,67,47,56,62,51,35,66,33,25,0,0,-17,0,-10,-7,-8,0,0,0,-45,0,0,8,-18,0,-18,0,0,0,-9,-1,-16,-30,-31,-25,-41,0,-22,-25,0,0,-29,-26,-54,45,19,8,22,75,48,74,0,0,-18,103,-7,-5,-7,0,0,0,0,0,0,0,-4,0,-8,-9,-6,0,0,0]} 1. d4 {[%emt 0:00:03]} d5 {[%emt 0:00:06]} 2. c4 {[%emt 0:00:05]} c6 {[%emt 0:00:04]} 3. Nc3 {[%emt 0:00:05]} Nf6 {[%emt 0:00:07]} 4. e3 {[%emt 0:00:07]} a6 {[%emt 0:01:31]} 5. Bd3 {[%emt 0:04:29]} b5 {[%emt 0:01:13]} 6. b3 {[%emt 0:01:00]} b4 {[%emt 0:03:25]} (6... Nbd7 $14) 7. Na4 $16 {[%emt 0:02:14]} Bg4 {[%emt 0:01:10]} 8. Ne2 {[%emt 0:05:09]} e6 {[%emt 0:02:40]} 9. O-O {[%emt 0:05:20]} Nbd7 {[%emt 0:01:30]} 10. f3 {[%emt 0:05:23]} Bf5 {[%emt 0:01:03]} 11. Bxf5 {[%emt 0:08:04]} exf5 {[%emt 0:00:02]} 12. Ng3 {[%emt 0:00:08]} g6 {[%emt 0:00:24]} 13. Re1 {[%emt 0:00:49] Strongly threatening e4.} Bd6 {[%emt 0:06:40]} 14. Nf1 {[%emt 0:03:43]} O-O {[%emt 0:00:59]} 15. Bb2 {[%emt 0:01:04]} Re8 {[%emt 0:00:41]} 16. Qd2 {[%emt 0:03:18]} Bf8 {[%emt 0:02:11]} 17. Rac1 {[%emt 0:02:11]} Qb8 {[%emt 0:03:29]} 18. Nc5 {[%emt 0:05:01]} a5 {[%emt 0:01:20]} 19. Nd3 {[%emt 0:11:42]} Qb7 {[%emt 0:06:27]} 20. Kf2 {[%emt 0:04:13]} Bd6 {[%emt 0:03:58]} 21. Kg1 {[%emt 0:01:54]} h5 {[%emt 0:04:47]} 22. Qf2 {[%emt 0:02:38]} Rac8 {[%emt 0:02:55]} 23. Kh1 {[%emt 0:02:06]} Nh7 {[%emt 0:00:47]} 24. Nd2 {[%emt 0:03:32]} Nhf6 {[%emt 0:04:20]} 25. Qh4 {[%emt 0:01:36]} Be7 {[%emt 0:02:50][%cal Of6e4] Hoping for ...Ne4!.} 26. Qh3 {[%emt 0:02:44]} Bf8 {[%emt 0:01:52]} 27. Qh4 {[%emt 0:02:30]} Bg7 {[%emt 0:01:21]} 28. Qg3 {[%emt 0:02:36]} Qb8 {[%emt 0:01:44]} 29. Qf2 {[%emt 0:03:06]} Bh6 {[%emt 0:01:39]} 30. a3 {[%emt 0:01:30]} bxa3 {[%emt 0:02:19]} 31. Bxa3 {[%emt 0:00:01]} Re6 {[%emt 0:00:23]} 32. g3 {[%emt 0:05:16]} g5 {[%emt 0:02:27]} (32... Rce8 $15 33. Nf4 Bxf4 34. gxf4 Qa8) 33. Bb2 {[%emt 0:06:24]} (33. f4 g4 34. Ne5 Qb7 35. Kg1) 33... Rce8 {[%emt 0:00:40]} 34. Bc3 {[%emt 0:00:48]} Qd8 {[%emt 0:02:27]} (34... g4 $11) 35. Ra1 {[%emt 0:01:49]} Qe7 {[%emt 0:01:01][%cal Re6e3]} 36. Bxa5 {[%emt 0:01:53]} (36. Ne5 $16) 36... Rxe3 $11 {[%emt 0:00:43]} 37. Ne5 {[%emt 0:01:24]} f4 {[%emt 0:00:57] [#]} (37... Rxe1+ $11 38. Rxe1 Bg7) 38. Rxe3 {[%emt 0:01:55]} (38. gxf4 $1 $16 gxf4 39. Rg1+ Kh7 40. Nxc6) 38... fxe3 {[%emt 0:00:02]} 39. Qxe3 {[%emt 0:00:02]} Nxe5 {[%emt 0:00:18]} (39... c5 {keeps more tension.} 40. f4 dxc4 41. Ndxc4 Nxe5 42. dxe5 Qb7+) 40. Qxe5 {[%emt 0:01:41]} Qxe5 {[%emt 0:01:06]} 41. dxe5 {[%emt 0:01:26]} Rxe5 {[%emt 0:00:06]} 42. Bc3 {[%emt 0:08:34]} Re6 {[%emt 0:00:29]} 43. Bxf6 {[%emt 0:02:49]} Rxf6 {[%emt 0:00:36]} 44. cxd5 {[%emt 0:02:30]} cxd5 {[%emt 0:00:03]} 45. Kg2 {[%emt 0:02:36]} Re6 {[%emt 0:02:01]} 46. Kf1 {[%emt 0:01:39] Repels Re2} Bf8 {[%emt 0:05:38]} 1/2-1/2

[Event "Prague Open 2025"]
[Site "Prague"]
[Date "2025.01.15"]
[Round "7.10"]
[White "Pourquet, Matthieu"]
[Black "Wilks, Simon"]
[Result "1-0"]
[Annotator "TA"]
[ECO "A13"]
[WhiteElo "2262"]
[BlackElo "2069"]
[PlyCount "81"]
[EventDate "2025.01.07"]
[EventType "swiss"]
[EventCountry "CZE"]
[SourceTitle "playchess.com"]
[Source "ChessBase"]
[SourceQuality "1"]
[TimeControl "40/5400+30:1800+30"]

{[%evp 10,81,13,6,22,12,23,20,20,16,21,6,1,0,8,-14,16,20,15,11,56,48,77,60,79,64,65,45,120,100,94,87,82,68,59,60,57,50,62,42,76,85,92,73,82,56,70,74,104,94,93,97,154,175,220,212,200,163,235,237,207,213,360,252,295,288,441,256,961,934,29988,29989,29989,29990]} 1. c4 {[%emt 0:00:04]} e6 {[%emt 0:06:19]} 2. g3 {[%emt 0:00:18]} Nf6 {[%emt 0:00:32]} 3. Bg2 {[%emt 0:00:05]} d5 {[%emt 0:00:36]} 4. Nf3 {[%emt 0:00:07]} d4 {[%emt 0:01:05]} 5. O-O {[%emt 0:00:18]} c5 {[%emt 0:00:15]} 6. e3 {[%emt 0:00:12]} Nc6 {[%emt 0:00:19]} 7. d3 {[%emt 0:00:05]} Bd6 {[%emt 0:03:10]} 8. exd4 {[%emt 0:00:17]} cxd4 {[%emt 0:00:17]} 9. Bg5 {[%emt 0:00:06]} h6 {[%emt 0:00:19]} 10. Bxf6 {[%emt 0:00:06]} Qxf6 {[%emt 0:00:05]} 11. Nfd2 {[%emt 0:00:05]} Qe7 {[%emt 0:05:56]} 12. Ne4 {[%emt 0:00:33]} Bc7 {[%emt 0:01:51]} 13. Na3 {[%emt 0:00:06]} O-O {[%emt 0:16:36]} 14. Nb5 {[%emt 0:00:45]} Bb6 {[%emt 0:09:05]} 15. Rc1 {[%emt 0:28:30]} Bc5 {[%emt 0:08:33]} 16. Qh5 {[%emt 0:05:02]} f5 {[%emt 0:04:27]} 17. Nxc5 {[%emt 0:00:57]} Qxc5 {[%emt 0:00:08]} 18. Qe2 {[%emt 0:04:58]} Nd8 {[%emt 0:03:37]} ({Better is} 18... f4 $14) 19. b4 {[%emt 0:08:12]} Qxb4 {[%emt 0:03:07]} 20. Nxd4 {[%emt 0:00:47]} Bd7 {[%emt 0:03:54]} 21. Rfe1 {[%emt 0:05:32][%cal Bf1e1,Be1e4,Be4e5][%mdl 32]} Rc8 {[%emt 0:03:02]} 22. Rb1 {[%emt 0:06:18]} Qc5 {[%emt 0:06:36]} 23. Qb2 {[%emt 0:10:49]} f4 {[%emt 0:09:11]} 24. Re4 {[%emt 0:02:38]} (24. Bxb7 $2 Nxb7 25. Nxe6 Bxe6 26. Rxe6 Nd8 $19) 24... fxg3 {[%emt 0:04:59]} 25. hxg3 {[%emt 0:00:14]} Rf6 {[%emt 0:05:05]} 26. Rbe1 {[%emt 0:02:18]} a6 {[%emt 0:01:22]} 27. Re5 {[%emt 0:02:37]} Qd6 {[%emt 0:00:48][%cal Ob7b5]} 28. R5e3 {[%emt 0:01:38] White has more active pieces.} (28. Bxb7 $2 Nxb7 29. Nxe6 Bxe6 $19 (29... Rxe6 $2 30. Rxe6 Bxe6 31. Qxb7 $19)) 28... Rc5 {[%emt 0:01:05]} 29. Nb3 {[%emt 0:02:19]} (29. Bxb7 $2 Nxb7 30. Nf3 Na5 $19) 29... Rh5 {[%emt 0:00:41]} 30. Nd2 {[%emt 0:01:38][%cal Od2e4]} Qf8 {[%emt 0:01:29]} (30... Bc6 $142) 31. Ne4 $16 {[%emt 0:00:16]} (31. Bxb7 Nxb7 32. Qxb7 Bc8 $17) 31... Rg6 {[%emt 0:00:41]} 32. d4 {[%emt 0:04:26]} Bc6 {[%emt 0:00:38]} 33. Qe2 {[%emt 0:00:36]} Ra5 {[%emt 0:00:40]} (33... Rf5 34. Bf3 Ra5) 34. c5 {[%emt 0:00:24]} (34. Nc5 Bxg2 35. Kxg2 Qe7) 34... Ra4 {[%emt 0:00:14]} 35. Qd2 {[%emt 0:03:23]} Rg4 {[%emt 0:00:43]} (35... e5 $142 36. dxe5 Ne6) 36. Bh3 {[%emt 0:02:56]} Rg6 {[%emt 0:00:23]} 37. Nc3 {[%emt 0:00:19][%csl LRa4,LRe6][%cal Be4c3,Bc3d5,Bd5e7][%mdl 32]} Rc4 {[%emt 0:00:40]} (37... Ra3 {is a better defense.} 38. Qb2 (38. Bxe6+ Rxe6 39. Rxe6 Nxe6 $16) 38... Rxc3) 38. d5 {[%emt 0:00:23]} (38. Bxe6+ Nxe6 39. d5 (39. Rxe6 Qf3 $17) (39. Qd3 $2 Rxc3 40. Qxc3 Nf4 $19) 39... Ng5 (39... Nxc5 $2 {perishes.} 40. dxc6 Qd6 41. Qxd6 $18) (39... Rd4 40. Qc2 $16) 40. dxc6 bxc6 $11 (40... Nf3+ 41. Rxf3 Qxf3 42. Re3 $11)) (38. Qd3 $142 Rxc3 39. Qxg6 Rxe3 40. Rxe3) 38... exd5 $2 {[%emt 0:00:18]} (38... Rxc3 39. Rxc3 (39. Qxc3 Bxd5 40. Bg2 Bxg2 $18) 39... Bxd5) 39. Nxd5 $18 {[%emt 0:00:06] Ne7+ would now be deadly.} Qxc5 {[%emt 0:00:41]} 40. Ne7+ {[%emt 0:01:19]} Kh7 {[%emt 0:00:20]} 41. Qxd8 {[%emt 0:30:33]} 1-0